fUSD/lending_fUSD_20250804
["ID","MTS","AMOUNT","RATE_DAILY","PERIOD"]
[377326001,1754346741496,-127.11649026,0.00038358,5]
[377326002,1754346741523,-114.63435978,0.00038359,15]
[377326003,1754346743107,-36.67634492,0.00038359,15]
[377326004,1754346743130,-147.5682953,0.00038359,7]
[377326005,1754346873049,-253.36952292,0.0003475,2]
[377326007,1754346917982,-184.9085911,0.0003475,2]
[377326008,1754346940946,-172.70694062,0.0003475,2]
[377326009,1754346993447,-126.51494536,0.0003475,2]
[377326010,1754346993473,-44.21333096,0.0003475,2]
[377326011,1754346995028,-238.29992773,0.0003475,2]
[377326012,1754346998938,-151.0,0.0003475,2]
[377326014,1754347055859,-151.0,0.00034334,2]
[377326015,1754347055885,-137.47444063,0.0003475,2]
[377326016,1754347114802,333.0,0.00030136,120]
[377326018,1754347176803,155.32,0.00013699,2]
[377326078,1754347808406,837.97645174,0.0003,7]
[377326095,1754347832335,-476.58130068,0.0003475,2]
[377326097,1754347832346,-438.278,0.0003475,2]
[377326099,1754347832359,-732.735,0.0003475,2]
[377326101,1754347832369,-288.474,0.0003475,2]
[377326103,1754347832379,-120.73953772,0.00038479,5]
[377326105,1754347832393,-1079.26046228,0.00038479,5]
[377326107,1754347832404,-400.0,0.0003848,5]
[377326109,1754347832414,-163.91787875,0.00038481,120]
[377326112,1754347832439,-700.09633151,0.00038481,120]
[377326114,1754347832451,-2598.08030783,0.00038481,120]
[377326115,1754347832478,-5017.71217126,0.00038481,120]
[377326116,1754347832493,-5332.97867924,0.00038481,120]
[377326117,1754347832504,-417.74206616,0.00038481,120]
[377326118,1754347832528,-3253.27504417,0.00038481,120]
[377326119,1754347832540,-5882.53444094,0.00038481,120]
[377326120,1754347832552,-3004.96421151,0.00038481,120]
[377326121,1754347832562,-413.13104985,0.00039003,2]
[377326122,1754347832571,-209.83946983,0.000399,41]
[377326123,1754347832582,-841.59890878,0.00040526,2]
[377326124,1754347832592,-209.83946973,0.00040713,43]
[377326125,1754347832601,-1291.6,0.00041,120]
[377326126,1754347832612,-200.0,0.00041096,20]
[377326127,1754347832622,-300.0,0.0004111,5]
[377326128,1754347832632,-464.0,0.00041315,2]
[377326129,1754347832641,-209.83946973,0.00041525,44]
[377326130,1754347832651,-398.33,0.00041652,120]
[377326131,1754347832661,-209.83946973,0.00042338,46]
[377326132,1754347832671,-209.83946973,0.0004315,48]
[377326133,1754347832680,-36.57124868,0.00043382,120]
[377326134,1754347832693,-361.75875132,0.00043382,120]
[377326135,1754347832702,-209.83946973,0.00043963,49]
[377326136,1754347832712,-498.49099959,0.00044117,30]
[377326137,1754347832732,-575.73121184,0.00044117,30]
[377326138,1754347832741,-209.83946973,0.00044775,51]
[377326139,1754347832751,-303.8170778,0.00044949,2]
[377326141,1754347832761,-845.84291927,0.0004495,2]
[377326143,1754347832771,-155.0,0.00045,120]
[377326145,1754347832780,-455.0,0.00045,120]
[377326147,1754347832790,-398.33,0.00045113,120]
[377326149,1754347832799,-146.43931721,0.00045575,2]
[377326150,1754347832811,-137.18576056,0.00045575,2]
[377326152,1754347832820,-550.0,0.00045587,4]
[377326154,1754347832830,-209.83946973,0.00045588,52]
[377326156,1754347832839,-250.0,0.00045678,120]
[377326158,1754347832853,-795.68,0.00046177,30]
[377326160,1754347832863,-466.93,0.00046177,30]
[377326162,1754347832872,-275.36476971,0.00046177,30]
[377326165,1754347832885,-191.56523029,0.00046177,30]
[377326167,1754347832895,-648.29615525,0.00046177,30]
[377326183,1754347833013,-147.38384475,0.00046177,30]
[377326187,1754347833022,-466.93,0.00046177,30]
[377326190,1754347833032,-208.67177839,0.00046177,30]
[377326193,1754347833044,-587.00822161,0.00046177,30]
[377326196,1754347833054,-466.93,0.00046177,30]
[377326199,1754347833064,-795.68,0.00046177,30]
[377326202,1754347833074,-466.93,0.00046177,30]
[377326205,1754347833084,-795.68,0.00046177,30]
[377326207,1754347833093,-466.93,0.00046177,30]
[377326209,1754347833103,-795.68,0.00046177,30]
[377326212,1754347833113,-432.18902281,0.00046177,30]
[377326216,1754347833125,-363.49097719,0.00046177,30]
[377326218,1754347833134,-466.93,0.00046177,30]
[377326220,1754347833144,-795.68,0.00046177,30]
[377326222,1754347833156,-466.93,0.00046177,30]
[377326224,1754347833165,-795.68,0.00046177,30]
[377326226,1754347833175,-466.93,0.00046177,30]
[377326228,1754347833184,-795.68,0.00046177,30]
[377326230,1754347833194,-501.0,0.00046336,10]
[377326232,1754347833204,-455.0,0.00046337,54]
[377326234,1754347833214,-175.0,0.00046388,7]
[377326236,1754347833224,-209.83946973,0.000464,54]
[377326238,1754347833234,-1083.0,0.00046439,30]
[377326240,1754347833244,-455.0,0.00046464,3]
[377326243,1754347833254,-152.0,0.00046465,3]
[377326245,1754347833265,-500.0,0.0004652,10]
[377326247,1754347833274,-500.0,0.0004652,10]
[377326249,1754347833284,-500.0,0.0004652,10]
[377326251,1754347833293,-506.47,0.00046601,120]
[377326252,1754347833303,-458.04,0.00046659,2]
[377326253,1754347833316,-372.3317569,0.00046676,2]
[377326254,1754347833327,-155.0,0.000467,120]
[377326255,1754347833336,-466.0,0.000467,120]
[377326256,1754347833346,-398.33,0.00046843,120]
[377326257,1754347833356,-1000.0,0.00047,120]
[377326258,1754347833366,-341.83515119,0.00047068,10]
[377326259,1754347833376,-209.83946973,0.00047213,56]
[377326260,1754347833386,-501.0,0.00047475,10]
[377326261,1754347833397,-408.82,0.00047514,2]
[377326262,1754347833408,-1209.49099896,0.00047775,2]
[377326263,1754347833417,-1000.0,0.00047793,2]
[377326264,1754347833428,-3589.52,0.00047832,4]
[377326265,1754347833438,-150.0,0.00047869,120]
[377326266,1754347833448,-172.45208532,0.00047903,120]
[377326267,1754347833457,-171.23,0.0004795,2]
[377326268,1754347833467,-2000.0,0.00048,120]
[377326269,1754347833477,-162.0,0.00048,90]
[377326270,1754347833487,-209.83946973,0.00048025,57]
[377326271,1754347833497,-151.53,0.00048234,120]
[377326272,1754347833509,-607.18,0.00048491,120]
[377326273,1754347833524,-155.0,0.000485,120]
[377326274,1754347833534,-398.33,0.00048573,120]
[377326275,1754347833543,-501.0,0.00048613,11]
[377326276,1754347833552,-209.83946973,0.00048838,59]
[377326277,1754347833562,-1083.0,0.00048884,30]
[377326278,1754347833572,-458.04,0.00048992,2]
[377326279,1754347833581,-50503.68424847,0.00048999,30]
[377326280,1754347833591,-3000.0,0.00049,120]
[377326281,1754347833603,-755.0,0.000491,2]
[377326282,1754347833613,-2682.54079468,0.00049215,15]
[377326283,1754347833622,-2214.1962,0.00049215,2]
[377326284,1754347833631,-1875.88980439,0.00049315,120]
[377326285,1754347833763,-2210.52019561,0.00049315,120]
[377326286,1754347833773,-1972.40901366,0.00049315,120]
[377326287,1754347833786,-2114.00098634,0.00049315,120]
[377326288,1754347833795,-4086.41,0.00049315,120]
[377326289,1754347833805,-4086.41,0.00049315,120]
[377326290,1754347833816,-4086.41,0.00049315,120]
[377326291,1754347833827,-1663.76901366,0.00049315,120]
[377326293,1754347838345,-466.93,0.00046177,30]
[377326294,1754347838356,-795.68,0.00046177,30]
[377326295,1754347838365,-738.09,0.00046177,30]
[377326296,1754347838375,-795.68,0.00046177,30]
[377326297,1754347838384,-888.0,0.00047101,120]
[377326298,1754347838394,-2422.64098634,0.00049315,120]
[377326299,1754347838404,-4086.41,0.00049315,120]
[377326300,1754347838414,-2580.68816538,0.00049315,120]
[377326301,1754347838426,-1505.72183462,0.00049315,120]
[377326302,1754347838435,-4086.41,0.00049315,120]
[377326303,1754347838445,-4086.41,0.00049315,120]
[377326304,1754347838455,-4086.41,0.00049315,120]
[377326305,1754347838465,-4086.41,0.00049315,120]
[377326306,1754347838474,-4086.41,0.00049315,120]
[377326307,1754347838484,-4086.41,0.00049315,120]
[377326308,1754347838494,-3359.66423038,0.00049315,120]
[377326309,1754347838524,-726.74576962,0.00049315,120]
[377326310,1754347838534,-3828.11387506,0.00049315,120]
[377326320,1754347838664,-258.29612494,0.00049315,120]
[377326322,1754347838673,-1670.64508547,0.00049315,120]
[377326324,1754347838685,-2415.76491453,0.00049315,120]
[377326326,1754347838695,-2972.46583082,0.00049315,120]
[377326513,1754347841331,-888.0,0.00047601,120]
[377326515,1754347841341,-1113.94416918,0.00049315,120]
[377326517,1754347841351,-4086.41,0.00049315,120]
[377326519,1754347841360,-4086.41,0.00049315,120]
[377326521,1754347841370,-4086.41,0.00049315,120]
[377326523,1754347841379,-4086.41,0.00049315,120]
[377326525,1754347841389,-4086.41,0.00049315,120]
[377326527,1754347841398,-3991.77102316,0.00049315,120]
[377326533,1754347841448,-94.75897684,0.00049315,120]
[377326535,1754347841457,-1776.0,0.00049341,120]
[377326537,1754347841466,-500.0,0.00049473,5]
[377326539,1754347841478,-1000.0,0.00049486,30]
[377326541,1754347841488,-2682.54079465,0.00049509,15]
[377326543,1754347841497,-0.20022851,0.00049566,120]
[377326545,1754347841508,-183.39905949,0.00049566,120]
[377326547,1754347841518,-183.599288,0.00049566,120]
[377326549,1754347841528,-150.0,0.00049572,12]
[377326551,1754347841538,-93.00165251,0.00049572,120]
[377326685,1754347843371,-0.01025143,0.00049572,120]
[377326695,1754347845459,-888.0,0.00048101,120]
[377326696,1754347845469,-712.62809606,0.00049572,120]
[377326697,1754347845478,-183.599288,0.00049575,120]
[377326698,1754347845488,-183.599288,0.00049575,120]
[377326699,1754347845499,-1055.30568949,0.00049575,120]
[377326700,1754347845511,-944.69431051,0.00049575,120]
[377326701,1754347845522,-2721.87,0.00049575,120]
[377326702,1754347845531,-151.0,0.00049582,120]
[377326703,1754347845541,-151.0,0.00049584,120]
[377326704,1754347845552,-183.599288,0.00049584,120]
[377326705,1754347845562,-183.599288,0.00049584,120]
[377326706,1754347845571,-183.599288,0.00049594,120]
[377326707,1754347845581,-183.599288,0.00049594,120]
[377326708,1754347845591,-795.68,0.000496,30]
[377326709,1754347845600,-795.68,0.000496,30]
[377326710,1754347845610,-209.83946973,0.0004965,60]
[377326711,1754347845620,-1098.74452881,0.00049686,90]
[377326712,1754347845630,-150.0,0.00049699,120]
[377326713,1754347845639,-1103.78913293,0.00049699,90]
[377326714,1754347845649,-1100.0,0.000497,18]
[377326715,1754347845660,-8186.79211082,0.000497,50]
[377326716,1754347846311,-7053.37742902,0.000497,50]
[377326717,1754347846348,-341.36887913,0.000497,50]
[377326718,1754347848267,-257.747551,0.000497,50]
[377326719,1754347848276,-136.33354727,0.00049744,7]
[377326720,1754347848287,-13.66645273,0.00049744,7]
[377326721,1754347848297,-150.0,0.00049745,7]
[377326722,1754347848307,-501.0,0.00049752,16]
[377326723,1754347848317,-150.0,0.00049762,7]
[377326724,1754347848326,-150.0,0.00049768,7]
[377326725,1754347848336,-168.28354727,0.0004978,7]
[377326726,1754347848350,-331.71645273,0.0004978,7]
[377326727,1754347848360,-500.0,0.0004978,2]
[377326728,1754347848370,-500.0,0.0004978,31]
[377326729,1754347848380,-500.0,0.0004978,120]
[377326730,1754347848391,-500.0,0.0004978,7]
[377326731,1754347848402,-500.0,0.0004978,120]
[377326732,1754347848413,-500.0,0.0004978,7]
[377326733,1754347848424,-500.0,0.0004978,31]
[377326734,1754347848434,-500.0,0.0004978,2]
[377326735,1754347848444,-500.0,0.0004978,120]
[377326736,1754347848454,-500.0,0.0004978,7]
[377326737,1754347848464,-500.0,0.0004978,120]
[377326738,1754347848473,-500.0,0.0004978,7]
[377326739,1754347848483,-500.0,0.0004978,31]
[377326740,1754347848492,-500.0,0.0004978,120]
[377326741,1754347848502,-500.0,0.0004978,2]
[377326742,1754347848511,-395.7337799,0.0004978,7]
[377326743,1754347848520,-412.6006121,0.0004978,7]
[377326744,1754347848530,-392.42653984,0.0004978,31]
[377326745,1754347848540,-500.0,0.0004978,120]
[377326746,1754347848550,-336.61535736,0.0004978,2]
[377326747,1754347848560,-548.30769534,0.0004978,120]
[377326748,1754347848569,-150.0,0.0004978,7]
[377326749,1754347848580,-20373.578,0.00049781,2]
[377326750,1754347848590,-150.0,0.00049788,7]
[377326751,1754347848600,-161.32,0.000498,2]
[377326752,1754347848609,-502.0,0.000498,30]
[377326753,1754347848618,-2200.0,0.000498,18]
[377326754,1754347848628,-379.0,0.000498,30]
[377326755,1754347848637,-775.0,0.000498,30]
[377326756,1754347848646,-239.0,0.000498,30]
[377326757,1754347848656,-2682.54079465,0.00049804,15]
[377326758,1754347848667,-157.0,0.00049829,7]
[377326759,1754347848676,-150.0,0.00049829,7]
[377326760,1754347848685,-1776.0,0.00049841,120]
[377326761,1754347848695,-805.64,0.00049846,120]
[377326762,1754347848704,-150.0,0.00049855,7]
[377326763,1754347848714,-439.60369544,0.00049865,30]
[377326764,1754347848723,-278.5,0.00049867,60]
[377326765,1754347848732,-150.0,0.00049869,7]
[377326766,1754347848741,-500.97030954,0.00049873,10]
[377326767,1754347848750,-505.4743943,0.00049873,10]
[377326768,1754347848760,-696.74571225,0.00049876,15]
[377326769,1754347848770,-5000.0,0.00049876,120]
[377326770,1754347848779,-30581.1906033,0.00049881,4]
[377326771,1754347848789,-636.82106493,0.00049886,38]
[377326772,1754347848799,-88888.0,0.00049891,120]
[377326773,1754347848808,-4500.0,0.000499,20]
[377326774,1754347848817,-3300.0,0.000499,18]
[377326775,1754347848827,-150.0,0.000499,2]
[377326776,1754347848836,-434.98830847,0.000499,2]
[377326777,1754347848846,-596.34297031,0.00049955,30]
[377326778,1754347848855,-150.0,0.00049966,7]
[377326779,1754347848864,-291.00263377,0.00049973,10]
[377326780,1754347848874,-467.18064997,0.00049973,10]
[377326781,1754347848883,-262.7990227,0.00049973,3]
[377326782,1754347848892,-288.25847511,0.00049973,10]
[377326783,1754347848902,-500.0,0.00049973,10]
[377326784,1754347848912,-150.0,0.00049973,7]
[377326785,1754347848922,-176374.96192084,0.00049976,4]
[377326786,1754347848935,-405.11967076,0.00049976,4]
[377326787,1754347848966,-12039.0,0.00049976,4]
[377326788,1754347848978,-19052.37956655,0.00049976,4]
[377326789,1754347848990,-3116.19999,0.00049976,4]
[377326790,1754347849006,-939.19978353,0.00049976,4]
[377326791,1754347849025,-74542.00000008,0.00049976,4]
[377326804,1754348257360,154.62,0.00013699,2]
[377326805,1754348449560,-466.716,0.0003475,2]
[377326806,1754348449584,-500.0,0.00039304,2]
[377326807,1754348449606,-184.59962589,0.00039304,2]
[377326808,1754348449630,-200.0,0.0004,120]
[377326809,1754348449653,-160.0,0.00040526,2]
[377326810,1754348449676,-239.44,0.0004164,7]
[377326811,1754348449700,-400.72,0.00041906,120]
[377326812,1754348449724,-400.72,0.00043636,120]
[377326813,1754348449747,-300.0,0.00044,120]
[377326814,1754348449771,-154.62,0.00044521,2]
[377326815,1754348449794,-400.72,0.00045366,120]
[377326816,1754348449816,-5000.0,0.00045606,120]
[377326817,1754348449837,-418.99,0.000464,30]
[377326818,1754348449858,-276.68083448,0.00046565,2]
[377326819,1754348449888,-215.83716169,0.000469,55]
[377326820,1754348449910,-1000.0,0.00047,120]
[377326821,1754348449932,-400.72,0.00047097,120]
[377326822,1754348449955,-162.82553072,0.00047239,2]
[377326823,1754348449976,-150.0,0.00047368,30]
[377326824,1754348449998,-1147.9776781,0.00047368,30]
[377326825,1754348450019,-12605.99,0.00047388,2]
[377326826,1754348450041,-795.68,0.000474,30]
[377326827,1754348450063,-452.0,0.000474,4]
[377326828,1754348450092,-215.83716163,0.00047456,56]
[377326829,1754348450115,-677.26005335,0.00047903,120]
[377326830,1754348450138,-300.0,0.00048,120]
[377326831,1754348450161,-2000.0,0.00048,120]
[377326832,1754348450191,-215.83716163,0.00048011,57]
[377326833,1754348450216,-1000.0,0.00048219,120]
[377326834,1754348450239,-1000.0,0.00048219,120]
[377326835,1754348450262,-1000.0,0.00048219,120]
[377326836,1754348450284,-488.39,0.00048219,120]
[377326837,1754348450306,-666.0,0.00048335,3]
[377326838,1754348450330,-150.0,0.00048393,2]
[377326839,1754348450352,-457.2201239,0.00048477,2]
[377326840,1754348450374,-1056.0,0.000485,2]
[377326841,1754348450397,-466.7,0.000485,30]
[377326842,1754348450420,-795.68,0.000485,30]
[377326843,1754348450443,-411.04,0.00048553,2]
[377326844,1754348450467,-548.70454118,0.00048558,2]
[377326845,1754348450496,-215.83716163,0.00048567,58]
[377326846,1754348450517,-1728.0,0.00048644,2]
[377326847,1754348450539,-170.35,0.00048655,2]
[377326848,1754348450564,-699.32931719,0.00048723,2]
[377326849,1754348450586,-1083.0,0.00048742,2]
[377326850,1754348450608,-1498.0,0.000488,2]
[377326851,1754348450631,-400.72,0.00048827,120]
[377326852,1754348450653,-1083.0,0.00048884,30]
[377326853,1754348450674,-1536.0,0.00048886,2]
[377326854,1754348450696,-467.28,0.00048886,85]
[377326855,1754348450719,-849.95409319,0.00048888,2]
[377326856,1754348450741,-11445.5551647,0.00048987,120]
[377326857,1754348450764,-3000.0,0.00049,120]
[377326858,1754348450788,-1000.5788692,0.00049054,2]
[377326859,1754348450818,-215.83716163,0.00049122,59]
[377326860,1754348450840,-924.0,0.00049128,2]
[377326861,1754348450862,-1151.20364521,0.00049219,2]
[377326862,1754348450883,-173.61,0.000493,30]
[377326863,1754348450904,-1197.13,0.00049315,120]
[377326864,1754348450924,-400.0,0.00049315,120]
[377326865,1754348450945,-508.72,0.00049315,120]
[377326866,1754348450965,-400.0,0.00049315,120]
[377326867,1754348450986,-400.0,0.00049315,120]
[377326868,1754348451006,-472.44,0.00049315,120]
[377326869,1754348451027,-536.95,0.00049315,120]
[377326870,1754348451048,-400.0,0.00049315,120]
[377326871,1754348451068,-1023.83,0.00049315,120]
[377326872,1754348451089,-433.92,0.00049315,120]
[377326873,1754348451110,-400.0,0.00049315,120]
[377326874,1754348451131,-400.0,0.00049315,120]
[377326875,1754348451152,-400.0,0.00049315,120]
[377326876,1754348451173,-2576.47,0.00049315,120]
[377326877,1754348451193,-307.13234163,0.00049315,120]
[377326878,1754348451214,-400.0,0.00049315,120]
[377326879,1754348451234,-694.9,0.00049315,120]
[377326880,1754348451256,-400.0,0.00049315,120]
[377326881,1754348451276,-1268.27,0.00049315,120]
[377326882,1754348451297,-602.7,0.00049315,120]
[377326883,1754348451319,-1301.82842122,0.00049384,2]
[377326884,1754348451342,-150.59122125,0.00049386,120]
[377326885,1754348451363,-1289.4146,0.00049386,2]
[377326886,1754348451384,-2214.1962,0.00049386,2]
[377326887,1754348451406,-643.45347348,0.00049392,15]
[377326888,1754348451427,-12584.5,0.00049429,120]
[377326889,1754348451450,-8239.95,0.00049429,120]
[377326890,1754348451472,-5712.08,0.00049429,120]
[377326891,1754348451495,-150.59122118,0.00049432,120]
[377326892,1754348451517,-3640.12751132,0.00049457,15]
[377326893,1754348451538,-24882.46887823,0.00049457,15]
[377326894,1754348451563,-870.82140908,0.00049471,28]
[377326895,1754348451584,-870.82140907,0.00049472,28]
[377326896,1754348451605,-870.82140907,0.00049472,28]
[377326897,1754348451627,-150.59122118,0.00049477,120]
[377326898,1754348451651,-500.0,0.00049485,2]
[377326899,1754348451673,-155.0815311,0.00049485,7]
[377326900,1754348451700,-500.0,0.00049485,31]
[377326901,1754348451720,-217.27845204,0.00049485,120]
[377326902,1754348451748,-303.63597005,0.00049485,120]
[377326903,1754348451773,-259.62392859,0.00049485,2]
[377326904,1754348451797,-293.3649846,0.00049485,31]
[377326905,1754348451820,-212.51117912,0.00049485,7]
[377326906,1754348451846,-500.0,0.00049485,120]
[377326907,1754348451869,-400.0,0.00049485,120]
[377326908,1754348451891,-400.0,0.00049485,120]
[377326909,1754348451916,-400.0,0.00049485,120]
[377326910,1754348451940,-16988.56,0.00049485,120]
[377326911,1754348451963,-400.0,0.00049485,120]
[377326912,1754348451984,-400.0,0.00049485,120]
[377326913,1754348452006,-400.0,0.00049485,120]
[377326914,1754348452029,-400.0,0.00049485,120]
[377326915,1754348452051,-400.0,0.00049485,2]
[377326916,1754348452075,-513.24,0.00049485,120]
[377326917,1754348452098,-400.0,0.00049485,120]
[377326918,1754348452121,-400.0,0.00049485,2]
[377326919,1754348452145,-400.0,0.00049485,120]
[377326920,1754348452168,-1126.2,0.00049485,120]
[377326921,1754348452191,-384.03398078,0.00049485,120]
[377326922,1754348452214,-919.79,0.00049485,120]
[377326923,1754348452507,-2858.3,0.00049485,120]
[377326924,1754348452531,-400.0,0.00049485,120]
[377326925,1754348452560,-400.0,0.00049485,120]
[377326926,1754348452583,-400.0,0.00049485,120]
[377326927,1754348452607,-400.0,0.00049485,120]
[377326928,1754348452628,-400.0,0.00049485,120]
[377326929,1754348452653,-400.0,0.00049485,2]
[377326930,1754348452673,-400.0,0.00049485,120]
[377326931,1754348452695,-400.0,0.00049485,120]
[377326932,1754348452726,-2010.42,0.00049485,120]
[377326933,1754348452748,-978.68,0.00049485,120]
[377326934,1754348452770,-400.0,0.00049485,120]
[377326935,1754348452791,-400.0,0.00049485,120]
[377326936,1754348452813,-401.0,0.00049485,2]
[377326937,1754348452836,-747.62,0.00049485,120]
[377326938,1754348452858,-400.0,0.00049485,120]
[377326939,1754348452882,-953.65,0.00049485,120]
[377326940,1754348452905,-180.0,0.00049485,120]
[377326941,1754348452929,-2212.07,0.00049486,120]
[377326942,1754348452952,-1683.85,0.00049486,120]
[377326943,1754348452975,-400.0,0.00049486,120]
[377326944,1754348452999,-466.76,0.00049486,120]
[377326945,1754348453022,-1112.19,0.00049486,120]
[377326946,1754348453044,-400.0,0.00049486,14]
[377326947,1754348453067,-1407.2,0.00049486,120]
[377326948,1754348453088,-400.0,0.00049486,30]
[377326949,1754348453112,-808.61,0.00049486,120]
[377326950,1754348453137,-400.0,0.00049486,120]
[377326951,1754348453158,-400.0,0.00049486,120]
[377326952,1754348453178,-3158.53,0.00049486,120]
[377326953,1754348453199,-2017.83,0.00049486,120]
[377326954,1754348453220,-840.6,0.00049486,120]
[377326955,1754348453241,-735.77,0.00049486,120]
[377326956,1754348453267,-400.0,0.00049486,120]
[377326957,1754348453291,-1153.62,0.00049486,120]
[377326958,1754348453313,-2679.94,0.00049486,120]
[377326959,1754348453335,-400.0,0.00049486,120]
[377326960,1754348453357,-400.0,0.00049486,120]
[377326961,1754348453378,-1396.26,0.00049486,120]
[377326962,1754348453400,-400.0,0.00049486,120]
[377326963,1754348453422,-697.4,0.00049486,120]
[377326964,1754348453444,-1218.04,0.00049486,120]
[377326965,1754348453466,-860.33,0.00049486,120]
[377326966,1754348453488,-767.69,0.00049486,120]
[377326967,1754348453509,-2490.3,0.00049486,120]
[377326968,1754348453531,-400.0,0.00049486,120]
[377326969,1754348453553,-400.0,0.00049486,120]
[377326970,1754348453582,-2191.11,0.00049486,120]
[377326971,1754348453608,-1295.61,0.00049486,120]
[377326972,1754348453629,-400.0,0.00049486,120]
[377326973,1754348453653,-433.77,0.00049486,120]
[377326974,1754348453676,-1044.22,0.00049486,120]
[377326975,1754348453698,-582.56,0.00049486,120]
[377326976,1754348453720,-413.29,0.00049486,120]
[377326977,1754348453741,-400.0,0.00049486,120]
[377326978,1754348453763,-1933.23,0.00049486,120]
[377326979,1754348453786,-400.0,0.00049486,120]
[377326980,1754348453813,-488.8,0.00049486,120]
[377326981,1754348453836,-400.0,0.00049486,120]
[377326982,1754348453859,-2432.45,0.00049486,120]
[377326983,1754348453880,-1077.04,0.00049486,120]
[377326984,1754348453902,-400.0,0.00049486,120]
[377326985,1754348453924,-484.28,0.00049486,120]
[377326986,1754348453946,-609.63,0.00049486,120]
[377326987,1754348453969,-400.0,0.00049486,120]
[377326988,1754348453992,-400.0,0.00049486,120]
[377326989,1754348454014,-8490.41,0.00049486,120]
[377326990,1754348454037,-400.0,0.00049486,120]
[377326991,1754348454059,-1896.97,0.00049486,120]
[377326992,1754348454080,-400.0,0.00049486,120]
[377326993,1754348454103,-752.09,0.00049486,120]
[377326994,1754348454125,-500.0,0.00049486,120]
[377326995,1754348454147,-659.61,0.00049486,120]
[377326996,1754348454168,-400.0,0.00049486,120]
[377326997,1754348454191,-400.0,0.00049486,120]
[377326998,1754348454215,-400.0,0.00049486,120]
[377326999,1754348454237,-623.9,0.00049486,120]
[377327000,1754348454259,-2604.05,0.00049486,120]
[377327001,1754348454281,-436.23,0.00049486,120]
[377327002,1754348454306,-1436.83,0.00049486,120]
[377327003,1754348454329,-400.0,0.00049486,120]
[377327004,1754348454351,-400.0,0.00049486,120]
[377327005,1754348454374,-712.21,0.00049486,120]
[377327006,1754348454396,-864.46,0.00049486,120]
[377327007,1754348454418,-508.83,0.00049486,120]
[377327008,1754348454442,-17773.6,0.00049486,120]
[377327009,1754348454465,-2789.02,0.00049486,120]
[377327010,1754348454487,-3250.68,0.00049486,120]
[377327011,1754348454510,-500.0,0.00049486,2]
[377327012,1754348454532,-882.5,0.00049486,120]
[377327013,1754348454554,-400.0,0.00049486,120]
[377327014,1754348454580,-6474.03,0.00049486,120]
[377327015,1754348454602,-400.0,0.00049486,120]
[377327016,1754348454625,-400.0,0.00049486,120]
[377327017,1754348454650,-4110.67,0.00049486,120]
[377327018,1754348454674,-2464.98,0.00049486,120]
[377327019,1754348454698,-400.0,0.00049486,120]
[377327020,1754348454721,-6557.06,0.00049486,120]
[377327021,1754348454747,-1237.32,0.00049486,120]
[377327022,1754348454769,-400.0,0.00049486,2]
[377327023,1754348454791,-400.0,0.00049486,120]
[377327024,1754348454814,-4393.67,0.00049486,120]
[377327025,1754348454836,-400.0,0.00049486,120]
[377327026,1754348454858,-400.0,0.00049486,120]
[377327027,1754348454879,-503.51,0.00049486,120]
[377327028,1754348454903,-742.61,0.00049486,120]
[377327029,1754348454928,-761.95,0.00049486,120]
[377327030,1754348454965,-400.0,0.00049486,120]
[377327031,1754348454994,-19784.91,0.00049486,120]